fUSD/lending_fUSD_20240105
["ID","MTS","AMOUNT","RATE_DAILY","PERIOD"]
[310328964,1704473517043,-848.87,0.00032876,2]
[310328965,1704473517053,-562.65482351,0.00032876,2]
[310328966,1704473517064,-554.12,0.00032876,2]
[310328967,1704473517074,-606.02,0.00032876,2]
[310328968,1704473517085,-11508.87,0.00032876,2]
[310328969,1704473517095,-500.0,0.00032876,2]
[310328970,1704473517106,-1649.63,0.00032876,2]
[310328971,1704473517116,-500.0,0.00032876,2]
[310328972,1704473517127,-500.0,0.00032876,2]
[310328973,1704473517354,-500.0,0.00032876,2]
[310328974,1704473517365,-1188.82,0.00032876,2]
[310328975,1704473517374,-687.41,0.00032876,2]
[310328976,1704473517385,-994.25,0.00032876,2]
[310328977,1704473517395,-1161.09,0.00032876,2]
[310328978,1704473517405,-500.0,0.00032876,2]
[310328979,1704473517415,-3783.36,0.00032876,2]
[310328980,1704473517425,-500.0,0.00032876,2]
[310328981,1704473517435,-907.04,0.00032876,2]
[310328982,1704473517445,-4030.69,0.00032876,2]
[310328983,1704473517455,-500.0,0.00032876,2]
[310328984,1704473517465,-500.0,0.00032876,2]
[310328985,1704473517475,-871.44,0.00032876,2]
[310328986,1704473517485,-2006.85,0.00032876,2]
[310328987,1704473517496,-500.0,0.00032876,2]
[310328988,1704473517506,-500.0,0.00032876,2]
[310328989,1704473517517,-8452.87,0.00032876,2]
[310328990,1704473517528,-1134.28,0.00032876,2]
[310328991,1704473517539,-500.0,0.00032876,2]
[310328992,1704473517549,-500.0,0.00032876,2]
[310328993,1704473517559,-566.66,0.00032876,2]
[310328994,1704473517570,-500.0,0.00032876,2]
[310328995,1704473517580,-1157.92,0.00032876,2]
[310328996,1704473517590,-500.0,0.00032876,2]
[310328997,1704473517600,-512.07,0.00032876,2]
[310328998,1704473517610,-1638.59,0.00032876,2]
[310328999,1704473517622,-1195.76,0.00032876,2]
[310329000,1704473517632,-500.0,0.00032876,2]
[310329001,1704473517643,-7740.43,0.00032876,2]
[310329002,1704473517654,-229.56717097,0.00032876,2]
[310329003,1704473517664,-1402.48,0.00032876,2]
[310329004,1704473517675,-500.0,0.00032876,2]
[310329005,1704473517686,-500.0,0.00032876,2]
[310329006,1704473517696,-504.28,0.00032876,2]
[310329007,1704473517706,-1600.27,0.00032876,2]
[310329008,1704473517717,-500.0,0.00032876,2]
[310329009,1704473517727,-378.03246242,0.00032876,2]
[310329010,1704473517737,-2394.98,0.00032876,2]
[310329011,1704473517749,-1206.82,0.00032876,2]
[310329012,1704473517759,-1116.25,0.00032876,2]
[310329013,1704473517770,-500.0,0.00032876,2]
[310329014,1704473517782,-1341.2,0.00032876,2]
[310329015,1704473517792,-1246.52,0.00032876,2]
[310329016,1704473517803,-500.0,0.00032876,2]
[310329017,1704473517813,-500.0,0.00032876,2]
[310329018,1704473517823,-884.54,0.00032876,2]
[310329019,1704473517834,-500.0,0.00032876,2]
[310329020,1704473517843,-3145.82,0.00032876,2]
[310329021,1704473517853,-2426.14093306,0.00032876,3]
[310329022,1704473517864,-834.29,0.00032876,2]
[310329023,1704473517874,-1393.24,0.00032876,2]
[310329024,1704473517885,-1151.41,0.00032876,2]
[310329025,1704473517899,-500.0,0.00032876,2]
[310329026,1704473517909,-500.0,0.00032876,2]
[310329027,1704473517919,-542.06,0.00032876,2]
[310329028,1704473517929,-790.38,0.00032876,2]
[310329029,1704473517940,-501.35,0.00032876,2]
[310329030,1704473517950,-1526.32,0.00032876,2]
[310329031,1704473517961,-500.0,0.00032876,2]
[310329032,1704473517970,-757.34,0.00032876,2]
[310329033,1704473517980,-153.84,0.00032877,2]
[310329034,1704473517993,-500.0,0.00032877,2]
[310329035,1704473518004,-1000.0,0.00032877,2]
[310329036,1704473518014,-1000.0,0.00032877,2]
[310329037,1704473518023,-1000.0,0.00032877,2]
[310329038,1704473518033,-1000.0,0.00032877,2]
[310329039,1704473518042,-1000.0,0.00032877,2]
[310329040,1704473518052,-1000.0,0.00032877,2]
[310329041,1704473518062,-1000.0,0.00032877,2]
[310329042,1704473518072,-1000.0,0.00032877,2]
[310329043,1704473518081,-1000.0,0.00032877,2]
[310329044,1704473518091,-1000.0,0.00032877,2]
[310329045,1704473518101,-1000.0,0.00032877,2]
[310329046,1704473518111,-1000.0,0.00032877,2]
[310329047,1704473518122,-1000.0,0.00032877,2]
[310329048,1704473518133,-1000.0,0.00032877,2]
[310329049,1704473518143,-1000.0,0.00032877,2]
[310329050,1704473518152,-1000.0,0.00032877,2]
[310329051,1704473518162,-1000.0,0.00032877,2]
[310329052,1704473518172,-1000.0,0.00032877,2]
[310329053,1704473518182,-1000.0,0.00032877,2]
[310329054,1704473518192,-1000.0,0.00032877,2]
[310329055,1704473518202,-1000.0,0.00032877,2]
[310329056,1704473518212,-1000.0,0.00032877,2]
[310329057,1704473518222,-1000.0,0.00032877,2]
[310329058,1704473518232,-1000.0,0.00032877,2]
[310329059,1704473518242,-1000.0,0.00032877,2]
[310329060,1704473518252,-1000.0,0.00032877,2]
[310329061,1704473518262,-1000.0,0.00032877,2]
[310329062,1704473518272,-1000.0,0.00032877,2]
[310329063,1704473518282,-381.0,0.00032877,2]
[310329064,1704473518293,-990.55,0.00032877,15]
[310329065,1704473518303,-20236.4004068,0.00032877,2]
[310329066,1704473518313,-7839.9822523,0.00032877,2]
[310329067,1704473518323,-8635.97,0.0003288,2]
[310329068,1704473518333,-8635.97,0.0003288,2]
[310329069,1704473518343,-8635.97,0.0003288,2]
[310329070,1704473518353,-8635.97,0.0003288,2]
[310329071,1704473518363,-8635.97,0.0003288,2]
[310329072,1704473518372,-1223.07805247,0.000329,3]
[310329073,1704473518382,-3408.18494152,0.000329,3]
[310329074,1704473518391,-2000.0,0.000329,2]
[310329075,1704473518401,-65005.0,0.000329,3]
[310329076,1704473518410,-751.0,0.000329,2]
[310329077,1704473518420,-3113.976,0.000329,2]
[310329078,1704473518429,-917.78142382,0.000329,2]
[310329079,1704473518439,-8000.0,0.000329,2]
[310329080,1704473518448,-335.2,0.00032906,2]
[310329081,1704473518457,-500.0,0.00032982,10]
[310329082,1704473518469,-150.34853113,0.00032995,2]
[310329083,1704473518478,-1969.24923612,0.00033,2]
[310329084,1704473518489,-155.0,0.00033,4]
[310329085,1704473518498,-2000.0,0.00033,5]
[310329086,1704473518508,-2873.0,0.00033,3]
[310329087,1704473518518,-89310.87100412,0.00033,3]
[310329088,1704473518528,-69354.0,0.00033,2]
[310329089,1704473518538,-34062.0,0.00033,3]
[310329090,1704473518548,-7225.0,0.00033,7]
[310329091,1704473518558,-2423.05760651,0.00033018,5]
[310329092,1704473518568,-208.0,0.0003308,2]
[310329093,1704473518579,-282.0,0.0003308,2]
[310329094,1704473518590,-190.4218231,0.00033149,2]
[310329095,1704473518600,-150.0,0.00033149,2]
[310329096,1704473518610,-500.0,0.0003315,3]
[310329097,1704473518621,-500.0,0.0003315,3]
[310329098,1704473518631,-500.0,0.0003315,3]
[310329099,1704473518640,-448.60848816,0.0003315,3]
[310329100,1704473518650,-500.0,0.0003315,3]
[310329101,1704473518660,-500.0,0.0003315,3]
[310329102,1704473518670,-285.29879942,0.0003315,3]
[310329103,1704473518681,-679.76,0.0003315,2]
[310329104,1704473518691,-500.0,0.0003315,3]
[310329105,1704473518701,-537.30910907,0.0003315,3]
[310329106,1704473518710,-500.0,0.0003315,3]
[310329107,1704473518722,-204.2,0.0003315,3]
[310329108,1704473518731,-500.0,0.0003315,3]
[310329109,1704473518741,-500.0,0.0003315,3]
[310329110,1704473518751,-500.0,0.0003315,3]
[310329111,1704473518761,-500.0,0.0003315,3]
[310329112,1704473518771,-500.0,0.0003315,3]
[310329113,1704473518782,-209.5974103,0.0003315,3]
[310329114,1704473518792,-500.0,0.0003315,3]
[310329115,1704473518802,-500.0,0.0003315,3]
[310329116,1704473518812,-500.0,0.0003315,3]
[310329117,1704473518822,-500.0,0.0003315,3]
[310329118,1704473518832,-500.0,0.0003315,3]
[310329119,1704473518843,-732.22,0.0003315,3]
[310329120,1704473518853,-500.0,0.0003315,3]
[310329121,1704473518864,-500.0,0.0003315,3]
[310329122,1704473518874,-500.0,0.0003315,3]
[310329123,1704473518888,-500.0,0.0003315,3]
[310329124,1704473518898,-500.0,0.0003315,3]
[310329125,1704473518908,-557.95,0.0003315,3]
[310329126,1704473518918,-711.61,0.0003315,3]
[310329127,1704473518929,-200.0,0.0003315,4]
[310329128,1704473518938,-500.0,0.0003315,3]
[310329129,1704473518948,-777.32,0.0003315,3]
[310329130,1704473518957,-500.0,0.0003315,3]
[310329131,1704473518968,-500.0,0.0003315,3]
[310329132,1704473518978,-500.0,0.0003315,3]
[310329133,1704473518987,-500.0,0.0003315,3]
[310329134,1704473518996,-500.0,0.0003315,3]
[310329135,1704473519006,-500.0,0.0003315,3]
[310329136,1704473519016,-500.0,0.0003315,3]
[310329137,1704473519027,-500.0,0.0003315,3]
[310329138,1704473519037,-500.0,0.0003315,3]
[310329139,1704473519047,-592.48,0.0003315,3]
[310329140,1704473519056,-500.0,0.0003315,2]
[310329141,1704473519066,-500.0,0.0003315,3]
[310329142,1704473519076,-1000.0,0.0003315,3]
[310329143,1704473519085,-640.91149592,0.0003315,3]
[310329144,1704473519095,-996.51,0.0003315,3]
[310329145,1704473519105,-500.0,0.0003315,3]
[310329146,1704473519115,-500.0,0.0003315,3]
[310329147,1704473519125,-500.0,0.0003315,3]
[310329148,1704473519136,-500.0,0.0003315,3]
[310329149,1704473519145,-500.0,0.0003315,3]
[310329150,1704473519154,-710.5,0.0003315,3]
[310329151,1704473519164,-500.0,0.0003315,3]
[310329152,1704473519173,-500.0,0.0003315,3]
[310329153,1704473519183,-500.0,0.0003315,3]
[310329154,1704473519193,-666.1,0.0003315,3]
[310329155,1704473519203,-537.71,0.0003315,3]
[310329156,1704473519213,-500.0,0.0003315,3]
[310329157,1704473519222,-617.72,0.0003315,3]
[310329158,1704473519232,-500.0,0.0003315,3]
[310329159,1704473519241,-647.0,0.0003315,3]
[310329160,1704473519249,-500.0,0.0003315,3]
[310329161,1704473519260,-500.0,0.0003315,3]
[310329162,1704473519270,-772.2,0.0003315,3]
[310329163,1704473519282,-500.0,0.0003315,3]
[310329164,1704473519291,-611.0448492,0.0003315,3]
[310329165,1704473519300,-500.0,0.0003315,3]
[310329166,1704473519309,-500.0,0.0003315,3]
[310329167,1704473519319,-537.87,0.0003315,3]
[310329168,1704473519328,-500.0,0.0003315,3]
[310329169,1704473519337,-1038.34,0.0003315,3]
[310329170,1704473519347,-500.0,0.0003315,3]
[310329171,1704473519357,-500.0,0.0003315,3]
[310329172,1704473519367,-500.0,0.0003315,3]
[310329173,1704473519377,-500.0,0.0003315,3]
[310329174,1704473519387,-500.0,0.0003315,3]
[310329175,1704473519397,-500.0,0.0003315,3]
[310329176,1704473519406,-500.0,0.0003315,3]
[310329177,1704473519416,-544.08,0.0003315,3]
[310329178,1704473519426,-500.0,0.0003315,3]
[310329179,1704473519435,-656.98,0.0003315,3]
[310329180,1704473519445,-500.0,0.0003315,3]
[310329181,1704473519455,-513.04064651,0.0003315,3]
[310329182,1704473519464,-500.0,0.0003315,3]
[310329183,1704473519473,-500.0,0.0003315,3]
[310329184,1704473519483,-669.87,0.0003315,3]
[310329185,1704473519493,-694.38,0.0003315,3]
[310329186,1704473519503,-742.45,0.0003315,3]
[310329187,1704473519514,-500.0,0.0003315,3]
[310329188,1704473519526,-500.0,0.0003315,3]
[310329189,1704473519536,-500.0,0.0003315,3]
[310329190,1704473519545,-500.0,0.0003315,3]
[310329191,1704473519555,-185.94611294,0.0003315,3]
[310329192,1704473519566,-544.16,0.0003315,3]
[310329193,1704473519577,-671.99,0.0003315,3]
[310329194,1704473519587,-669.51,0.0003315,3]
[310329195,1704473519598,-500.0,0.0003315,3]
[310329196,1704473519608,-548.59,0.0003315,3]
[310329197,1704473519618,-500.0,0.0003315,3]
[310329198,1704473519628,-1530.36,0.0003315,3]
[310329199,1704473519639,-500.0,0.0003315,3]
[310329200,1704473519648,-583.81,0.0003315,3]
[310329201,1704473519658,-500.0,0.0003315,3]
[310329202,1704473519668,-500.0,0.0003315,3]
[310329203,1704473519678,-500.0,0.0003315,3]
[310329204,1704473519688,-500.0,0.0003315,3]
[310329205,1704473519697,-500.0,0.0003315,3]
[310329206,1704473519707,-500.0,0.0003315,3]
[310329207,1704473519717,-500.0,0.0003315,3]
[310329208,1704473519727,-754.95,0.0003315,3]
[310329209,1704473519824,-500.0,0.0003315,3]
[310329210,1704473519835,-388.86,0.0003315,3]
[310329211,1704473519845,-283.45616487,0.0003315,3]
[310329212,1704473519855,-500.0,0.0003315,3]
[310329213,1704473519867,-500.0,0.0003315,3]
[310329214,1704473519877,-500.0,0.0003315,3]
[310329215,1704473519893,-1275.01,0.0003315,3]
[310329216,1704473519903,-500.0,0.0003315,3]
[310329217,1704473519912,-500.0,0.0003315,3]
[310329218,1704473519922,-500.0,0.0003315,3]
[310329219,1704473519932,-218.99622579,0.0003315,3]
[310329220,1704473519942,-843.96,0.0003315,3]
[310329221,1704473519952,-500.0,0.0003315,3]
[310329222,1704473519962,-207.89,0.0003315,3]
[310329223,1704473519972,-500.0,0.0003315,3]
[310329224,1704473519982,-500.0,0.0003315,3]
[310329225,1704473519993,-640.57752113,0.0003315,3]
[310329226,1704473520004,-807.23,0.0003315,3]
[310329227,1704473520015,-500.0,0.0003315,3]
[310329228,1704473520026,-556.03435712,0.0003315,3]
[310329229,1704473520036,-500.0,0.0003315,3]
[310329230,1704473520046,-500.0,0.0003315,3]
[310329231,1704473520055,-721.09,0.0003315,3]
[310329232,1704473520065,-500.0,0.0003315,3]
[310329233,1704473520076,-500.0,0.0003315,3]
[310329234,1704473520086,-500.0,0.0003315,3]
[310329235,1704473520096,-500.0,0.0003315,3]
[310329236,1704473520106,-500.0,0.0003315,3]
[310329237,1704473520117,-500.0,0.0003315,3]
[310329238,1704473520127,-593.3,0.0003315,3]
[310329239,1704473520136,-500.0,0.0003315,3]
[310329240,1704473520145,-500.0,0.0003315,3]
[310329241,1704473520156,-500.0,0.0003315,3]
[310329242,1704473520166,-500.0,0.0003315,3]
[310329243,1704473520176,-12011.09,0.0003315,3]
[310329244,1704473520186,-500.0,0.0003315,3]
[310329245,1704473520195,-500.0,0.0003315,3]
[310329246,1704473520205,-500.0,0.0003315,3]
[310329247,1704473520214,-1537.14,0.0003315,3]
[310329248,1704473520224,-1588.31,0.0003315,3]
[310329249,1704473520237,-500.0,0.0003315,3]
[310329250,1704473520247,-5973.26,0.0003315,3]
[310329251,1704473520256,-562.91,0.0003315,3]
[310329252,1704473520266,-500.0,0.0003315,3]
[310329253,1704473520277,-1752.6,0.0003315,3]
[310329254,1704473520287,-3119.17,0.0003315,3]
[310329255,1704473520297,-1026.31,0.0003315,3]
[310329256,1704473520306,-1346.93,0.0003315,3]
[310329257,1704473520316,-1520.28,0.0003315,3]
[310329258,1704473520326,-500.0,0.0003315,3]
[310329259,1704473520336,-500.0,0.0003315,3]
[310329260,1704473520346,-500.0,0.0003315,3]
[310329261,1704473520356,-500.0,0.0003315,3]
[310329262,1704473520366,-500.0,0.0003315,3]
[310329263,1704473520376,-500.0,0.0003315,3]
[310329264,1704473520385,-500.0,0.0003315,3]
[310329265,1704473520395,-621.93,0.0003315,3]
[310329266,1704473520405,-871.85,0.0003315,3]
[310329267,1704473520414,-522.5,0.0003315,3]
[310329268,1704473520424,-790.33,0.0003315,3]
[310329269,1704473520434,-2085.78,0.0003315,3]
[310329270,1704473520443,-651.26,0.0003315,3]
[310329271,1704473520453,-500.0,0.0003315,3]
[310329272,1704473520462,-1658.28,0.0003315,3]
[310329273,1704473520472,-500.0,0.0003315,3]
[310329274,1704473520481,-2545.82,0.0003315,3]
[310329275,1704473520491,-2368.93,0.0003315,3]
[310329276,1704473520500,-500.0,0.0003315,3]
[310329277,1704473520510,-453.89458623,0.0003315,3]
[310329278,1704473520520,-5035.78,0.0003315,3]
[310329279,1704473520530,-1615.12,0.0003315,3]
[310329280,1704473520540,-3964.99,0.0003315,3]
[310329281,1704473520550,-900.42,0.0003315,3]
[310329282,1704473520560,-500.0,0.0003315,3]
[310329283,1704473520569,-527.61,0.0003315,3]
[310329284,1704473520580,-500.0,0.0003315,3]
[310329285,1704473520589,-855.65,0.0003315,3]
[310329286,1704473520600,-3932.79,0.0003315,3]
[310329287,1704473520609,-15880.58,0.0003315,3]
[310329288,1704473520619,-500.0,0.0003315,3]
[310329289,1704473520628,-630.59,0.0003315,3]
[310329290,1704473520637,-2821.0,0.0003315,3]
[310329291,1704473520646,-500.0,0.0003315,3]
[310329292,1704473520656,-1090.66,0.0003315,3]
[310329293,1704473520665,-500.0,0.0003315,3]
[310329294,1704473520674,-500.0,0.0003315,3]
[310329295,1704473520684,-500.0,0.0003315,3]
[310329296,1704473520694,-1511.19,0.0003315,3]
[310329297,1704473520703,-500.0,0.0003315,3]
[310329298,1704473520713,-668.86,0.0003315,3]
[310329299,1704473520723,-500.0,0.0003315,3]
[310329300,1704473520732,-1950.6,0.0003315,3]
[310329301,1704473520742,-7990.73,0.0003315,3]
[310329302,1704473520752,-500.0,0.0003315,3]
[310329303,1704473520762,-2431.79,0.0003315,3]
[310329304,1704473520771,-500.0,0.0003315,3]
[310329305,1704473520782,-500.0,0.0003315,3]
[310329306,1704473520792,-584.76224486,0.0003315,3]
[310329307,1704473520802,-1509.04,0.0003315,3]
[310329308,1704473520811,-752.06,0.0003315,3]
[310329309,1704473520821,-527.49,0.0003315,3]
[310329310,1704473520831,-555.27,0.0003315,3]
[310329311,1704473520841,-6614.78,0.0003315,3]
[310329312,1704473520851,-1289.91,0.0003315,3]
[310329313,1704473520861,-1136.89,0.0003315,3]
[310329314,1704473520870,-646.07,0.0003315,3]
[310329315,1704473520882,-500.0,0.0003315,3]
[310329316,1704473520894,-588.45,0.0003315,3]
[310329317,1704473520908,-1154.77,0.0003315,3]
[310329318,1704473520918,-1148.85,0.0003315,3]
[310329319,1704473520928,-500.0,0.0003315,3]
[310329320,1704473520937,-864.89,0.0003315,3]
[310329321,1704473520947,-500.0,0.0003315,3]
[310329322,1704473520957,-746.81,0.0003315,3]
[310329323,1704473520966,-500.0,0.0003315,3]
[310329324,1704473520976,-1747.09,0.0003315,3]
[310329325,1704473520986,-1086.86,0.0003315,3]
[310329326,1704473520995,-585.14,0.0003315,3]
[310329327,1704473521005,-504.75011132,0.0003315,3]
[310329328,1704473521015,-500.0,0.0003315,3]
[310329329,1704473521024,-500.0,0.0003315,3]
[310329330,1704473521034,-500.0,0.0003315,3]
[310329331,1704473521045,-898.8,0.0003315,3]
[310329332,1704473521053,-581.39,0.0003315,3]
[310329333,1704473521062,-2794.23,0.0003315,3]
[310329334,1704473521072,-680.71,0.0003315,3]
[310329335,1704473521081,-2835.72,0.0003315,3]
[310329336,1704473521091,-500.0,0.0003315,3]
[310329337,1704473521101,-2858.86,0.0003315,3]
[310329338,1704473521110,-533.41,0.0003315,3]
[310329339,1704473521119,-500.0,0.0003315,3]
[310329340,1704473521129,-500.0,0.0003315,3]
[310329341,1704473521138,-2517.57,0.0003315,3]
[310329342,1704473521147,-500.0,0.0003315,3]
[310329343,1704473521156,-1374.42,0.0003315,3]
[310329344,1704473521166,-2511.86,0.0003315,3]
[310329345,1704473521175,-500.0,0.0003315,3]
[310329346,1704473521185,-2755.52,0.0003315,3]
[310329347,1704473521195,-500.0,0.0003315,3]
[310329348,1704473521204,-500.0,0.0003315,3]
[310329349,1704473521214,-1222.0,0.0003315,3]
[310329350,1704473521225,-500.0,0.0003315,3]
[310329351,1704473521235,-4236.93,0.0003315,3]
[310329352,1704473521245,-500.0,0.0003315,3]
[310329353,1704473521255,-814.18,0.0003315,3]
[310329354,1704473521265,-500.0,0.0003315,3]
[310329355,1704473521274,-2392.95,0.0003315,3]
[310329356,1704473521285,-500.0,0.0003315,3]
[310329357,1704473521294,-1842.01,0.0003315,3]
[310329358,1704473521303,-804.31,0.0003315,3]
[310329359,1704473521313,-645.88,0.0003315,3]
[310329360,1704473521323,-500.0,0.0003315,3]
[310329361,1704473521332,-780.05,0.0003315,3]
[310329362,1704473521341,-20128.17,0.0003315,3]
[310329363,1704473521351,-500.0,0.0003315,3]
[310329364,1704473521361,-618.16,0.0003315,3]
[310329365,1704473521371,-500.0,0.0003315,3]
[310329366,1704473521380,-510.82,0.0003315,3]
[310329367,1704473521391,-500.0,0.0003315,3]
[310329368,1704473521410,-1056.97,0.0003315,3]
[310329369,1704473521423,-1483.19,0.0003315,3]
[310329370,1704473521433,-500.0,0.0003315,3]
[310329371,1704473521443,-500.0,0.0003315,3]
[310329372,1704473521453,-500.0,0.0003315,3]
[310329373,1704473521464,-1304.64,0.0003315,3]
[310329374,1704473521474,-600.79785402,0.0003315,3]
[310329375,1704473521483,-493.73394685,0.0003315,3]
[310329376,1704473521493,-759.04,0.0003315,3]
[310329377,1704473521503,-1800.48,0.0003315,3]
[310329378,1704473521513,-3227.18,0.0003315,3]
[310329379,1704473521523,-3583.58,0.0003315,3]
[310329380,1704473521535,-768.62,0.0003315,3]
[310329381,1704473521545,-500.0,0.0003315,3]
[310329382,1704473521555,-500.0,0.0003315,3]
[310329383,1704473521565,-2756.04,0.0003315,3]
[310329384,1704473521574,-2834.13,0.0003315,3]
[310329385,1704473521584,-2515.3,0.0003315,3]
[310329386,1704473521594,-500.0,0.0003315,3]
[310329387,1704473521604,-5299.03,0.0003315,3]
[310329388,1704473521614,-537.2,0.0003315,3]
[310329389,1704473521624,-664.57,0.0003315,3]
[310329390,1704473521634,-500.0,0.0003315,3]
[310329391,1704473521644,-1051.18,0.0003315,3]
[310329392,1704473521654,-512.71,0.0003315,3]
[310329393,1704473521664,-179.11847441,0.0003315,3]
[310329394,1704473521674,-500.0,0.0003315,3]
[310329395,1704473521684,-1696.0,0.0003315,3]
[310329396,1704473521694,-2490.22,0.0003315,3]
[310329397,1704473521704,-608.88948331,0.0003315,3]
[310329398,1704473521714,-3340.06,0.0003315,3]
[310329399,1704473521724,-1285.5,0.0003315,3]
[310329400,1704473521735,-500.0,0.0003315,3]
[310329401,1704473521756,-848.87,0.0003315,3]
[310329402,1704473521775,-606.02,0.0003315,3]
[310329403,1704473521786,-554.12,0.0003315,3]
[310329404,1704473521797,-11508.87,0.0003315,3]
[310329405,1704473521808,-500.0,0.0003315,3]
[310329406,1704473521818,-1649.63,0.0003315,3]
[310329407,1704473521829,-500.0,0.0003315,3]
[310329408,1704473521839,-500.0,0.0003315,3]
[310329409,1704473521849,-500.0,0.0003315,3]
[310329410,1704473521860,-1188.82,0.0003315,3]
[310329411,1704473521870,-687.41,0.0003315,3]
[310329412,1704473521881,-994.25,0.0003315,3]
[310329413,1704473521891,-1161.09,0.0003315,3]
[310329414,1704473521905,-500.0,0.0003315,3]
[310329415,1704473521915,-3783.36,0.0003315,3]
[310329416,1704473521926,-907.04,0.0003315,3]
[310329417,1704473521935,-500.0,0.0003315,3]
[310329418,1704473521945,-4030.69,0.0003315,3]
[310329419,1704473521955,-500.0,0.0003315,3]
[310329420,1704473521964,-871.44,0.0003315,3]
[310329421,1704473521974,-2006.85,0.0003315,3]
[310329422,1704473521984,-500.0,0.0003315,3]
[310329423,1704473521994,-500.0,0.0003315,3]
[310329424,1704473522004,-500.0,0.0003315,3]
[310329425,1704473522015,-8452.87,0.0003315,3]
[310329426,1704473522027,-1134.28,0.0003315,3]
[310329427,1704473522038,-500.0,0.0003315,3]
[310329428,1704473522052,-500.0,0.0003315,3]
[310329429,1704473522063,-566.66,0.0003315,3]
[310329430,1704473522073,-500.0,0.0003315,3]
[310329431,1704473522083,-1157.92,0.0003315,3]
[310329432,1704473522093,-500.0,0.0003315,3]
[310329433,1704473522103,-512.07,0.0003315,3]
[310329434,1704473522114,-1638.59,0.0003315,3]
[310329435,1704473522125,-1195.76,0.0003315,3]
[310329436,1704473522135,-500.0,0.0003315,3]
[310329437,1704473522145,-7740.43,0.0003315,3]
[310329438,1704473522156,-1402.48,0.0003315,3]
[310329439,1704473522166,-500.0,0.0003315,3]
[310329440,1704473522176,-500.0,0.0003315,3]
[310329441,1704473522186,-1600.27,0.0003315,3]
[310329442,1704473522196,-504.28,0.0003315,3]
[310329443,1704473522206,-174.44051303,0.0003315,3]
[310329444,1704473522217,-2394.98,0.0003315,3]
[310329445,1704473522227,-1206.82,0.0003315,3]
[310329446,1704473522237,-1116.25,0.0003315,3]
[310329447,1704473522247,-500.0,0.0003315,3]
[310329448,1704473522257,-1341.2,0.0003315,3]
[310329449,1704473522268,-1246.52,0.0003315,3]
[310329450,1704473522280,-500.0,0.0003315,3]
[310329451,1704473522291,-500.0,0.0003315,3]
[310329452,1704473522301,-884.54,0.0003315,3]
[310329453,1704473522311,-500.0,0.0003315,3]
[310329454,1704473522322,-3145.82,0.0003315,3]
[310329455,1704473522332,-834.29,0.0003315,3]
[310329456,1704473522344,-1393.24,0.0003315,3]
[310329457,1704473522354,-1151.41,0.0003315,3]
[310329458,1704473522365,-500.0,0.0003315,3]
[310329459,1704473522375,-500.0,0.0003315,3]
[310329460,1704473522385,-542.06,0.0003315,3]
[310329461,1704473522395,-790.38,0.0003315,3]
[310329462,1704473522405,-501.35,0.0003315,2]
[310329463,1704473522415,-1526.32,0.0003315,3]